{"text_format":"1","workbook":"xlsx","n_sheets":6,"sheets":["Cover Sheet","Max Cont Power","Efficiency Data","Summary","List data","Dropdown"],"not_rendered":{"charts":1,"images":1,"macros":1,"external_links":0,"defined_names":1,"comments":2,"pivot_tables":0},"unopened":[],"bounds":{"document_bytes":16777216,"sheet_cells":100000,"rows_first":2000,"rows_last":500,"rows_between":2000,"halvings":0,"cell_chars":16384,"cell_head_chars":4096},"cells_cut":0,"cells_raw":0,"read":"whole","date_system":"1900"}

{"sheet":"Cover Sheet","index":0,"n_rows":26,"n_cols":4,"rows_kept":26,"cut":false,"hidden":false,"merged":[]}
["Power and Efficiency of Inverter Form"]
[]
[null,"Form Revised 10/15/18"]
[]
[null,"This form must be submitted for either:"]
[1,"All Utility Interactive Inverter Requests"]
[2,"Grid Support Utility Interactive Inverter Requests where the Utility Interactive model is not listed or the data is different"]
[]
[]
[null,"Instructions for Completing Form"]
[1,"Macros must be enabled prior to using the form"]
[2,"On the Max Cont Power worksheet"]
[null,null,"Enter the Manufacturer Name, Model Name, and Output Voltage (Vac)"]
[null,null,null,"Complete one Power and Efficiency form for each model and each output voltage"]
[null,null,"Select the appropriate Test Interval"]
[null,null,null,"1 Minute or 5 Minute: if 1 Minute is selected, the 5 minute averages will be calculated automatically"]
[null,null,null,"For any other test interval than 1 or 5 Minute, contact the Energy Commission for assistance"]
[null,null,"Enter data for each measurement time"]
[null,null,null,"Be sure to enter power readings in watts"]
[3,"On the Efficiency Data worksheet"]
[null,null,"Enter the specified DC minimum voltage, nominal voltage and maximum voltage"]
[null,null,null,"Cells C5, C12, C19"]
[null,null,"Enter the input voltage, output power and efficiency for minimum 5 samples"]
[4,"On the Summary worksheet"]
[null,null,"Enter the Night Tare Loss (in watts)"]
[null,null,"Verify that all information is correct"]

{"sheet":"Max Cont Power","index":1,"n_rows":10,"n_cols":12,"rows_kept":10,"cut":false,"hidden":true,"merged":[]}
["MAXIMUM CONTINUOUS OUTPUT POWER"]
["Manufacturer:",null,null,null,null,null,"Maximum Continuous AC Output Power (W):"]
["Model:"]
["Output Voltage (Vac):"]
["Test Interval:"]
[]
[]
[null,null,null,null,null,"Input (Direct Current)",null,null,"Output (Alternating Current)"]
["Minute Interval","Date","Time","Ambient Temp. (°C)","Heatsink Temp. (°C)","Voltage (V)","Current (A)","Power (W)","Voltage (V)","Current (A)","Frequency (Hz)","Power (W)"]
["Select a Test Interval"]

{"sheet":"Efficiency Data","index":2,"n_rows":48,"n_cols":23,"rows_kept":48,"cut":false,"hidden":true,"merged":[]}
["Minimum of 5 samples required"]
["Specified",null,null,null,"Sample #1",null,null,null,"Sample #2",null,null,null,"Sample #3",null,null,null,"Sample #4",null,null,null,"Sample #5"]
["Output Power ","Output Power ","Input Voltage ",null,"Output Power","Input Voltage","Efficiency",null,"Output Power","Input Voltage","Efficiency",null,"Output Power","Input Voltage","Efficiency",null,"Output Power","Input Voltage","Efficiency",null,"Output Power","Input Voltage","Efficiency"]
["(% of MCOP)","(W)","(Vdc)",null,"(W)","(Vdc)","(%)",null,"(W)","(Vdc)","(%)",null,"(W)","(Vdc)","(%)",null,"(W)","(Vdc)","(%)",null,"(W)","(Vdc)","(%)"]
[0.1,{"$f":"'Max Cont Power'!$L$2*'Efficiency Data'!A5","v":0},"[Vmin]"]
[0.2,{"$f":"'Max Cont Power'!$L$2*'Efficiency Data'!A6","v":0},{"$f":"$C$5","v":"[Vmin]"}]
[0.3,{"$f":"'Max Cont Power'!$L$2*'Efficiency Data'!A7","v":0},{"$f":"$C$5","v":"[Vmin]"}]
[0.5,{"$f":"'Max Cont Power'!$L$2*'Efficiency Data'!A8","v":0},"[Vmin]"]
[0.75,{"$f":"'Max Cont Power'!$L$2*'Efficiency Data'!A9","v":0},"[Vmin]"]
[1,{"$f":"'Max Cont Power'!$L$2*'Efficiency Data'!A10","v":0},"[Vmin]"]
[null,{"$f":"'Max Cont Power'!$L$2*'Efficiency Data'!A11","v":0}]
[0.1,{"$f":"'Max Cont Power'!$L$2*'Efficiency Data'!A12","v":0},"[Vnom]"]
[0.2,{"$f":"'Max Cont Power'!$L$2*'Efficiency Data'!A13","v":0},{"$f":"$C$12","v":"[Vnom]"}]
[0.3,{"$f":"'Max Cont Power'!$L$2*'Efficiency Data'!A14","v":0},{"$f":"$C$12","v":"[Vnom]"}]
[0.5,{"$f":"'Max Cont Power'!$L$2*'Efficiency Data'!A15","v":0},"[Vnom]"]
[0.75,{"$f":"'Max Cont Power'!$L$2*'Efficiency Data'!A16","v":0},"[Vnom]"]
[1,{"$f":"'Max Cont Power'!$L$2*'Efficiency Data'!A17","v":0},"[Vnom]"]
[null,{"$f":"'Max Cont Power'!$L$2*'Efficiency Data'!A18","v":0}]
[0.1,{"$f":"'Max Cont Power'!$L$2*'Efficiency Data'!A19","v":0},"[Vmax]"]
[0.2,{"$f":"'Max Cont Power'!$L$2*'Efficiency Data'!A20","v":0},{"$f":"$C$19","v":"[Vmax]"}]
[0.3,{"$f":"'Max Cont Power'!$L$2*'Efficiency Data'!A21","v":0},{"$f":"$C$19","v":"[Vmax]"}]
[0.5,{"$f":"'Max Cont Power'!$L$2*'Efficiency Data'!A22","v":0},"[Vmax]"]
[0.75,{"$f":"'Max Cont Power'!$L$2*'Efficiency Data'!A23","v":0},"[Vmax]"]
[1,{"$f":"'Max Cont Power'!$L$2*'Efficiency Data'!A24","v":0},"[Vmax]"]
[]
["Specified",null,null,null,"Sample #6",null,null,null,"Sample #7",null,null,null,"Sample #8",null,null,null,"Sample #9",null,null,null,"Sample #10"]
["Output Power ","Output Power ","Input Voltage ",null,"Output Power","Input Voltage","Efficiency",null,"Output Power","Input Voltage","Efficiency",null,"Output Power","Input Voltage","Efficiency",null,"Output Power","Input Voltage","Efficiency",null,"Output Power","Input Voltage","Efficiency"]
["(% of MCOP)","(W)","(Vdc)",null,"(W)","(Vdc)","(%)",null,"(W)","(Vdc)","(%)",null,"(W)","(Vdc)","(%)",null,"(W)","(Vdc)","(%)",null,"(W)","(Vdc)","(%)"]
[0.1,{"$f":"'Max Cont Power'!$L$2*'Efficiency Data'!A29","v":0},{"$f":"$C$5","v":"[Vmin]"}]
[0.2,{"$f":"'Max Cont Power'!$L$2*'Efficiency Data'!A30","v":0},"[Vmin]"]
[0.3,{"$f":"'Max Cont Power'!$L$2*'Efficiency Data'!A31","v":0},"[Vmin]"]
[0.5,{"$f":"'Max Cont Power'!$L$2*'Efficiency Data'!A32","v":0},"[Vmin]"]
[0.75,{"$f":"'Max Cont Power'!$L$2*'Efficiency Data'!A33","v":0},"[Vmin]"]
[1,{"$f":"'Max Cont Power'!$L$2*'Efficiency Data'!A34","v":0},"[Vmin]"]
[null,{"$f":"'Max Cont Power'!$L$2*'Efficiency Data'!A35","v":0}]
[0.1,{"$f":"'Max Cont Power'!$L$2*'Efficiency Data'!A36","v":0},{"$f":"$C$12","v":"[Vnom]"}]
[0.2,{"$f":"'Max Cont Power'!$L$2*'Efficiency Data'!A37","v":0},"[Vnom]"]
[0.3,{"$f":"'Max Cont Power'!$L$2*'Efficiency Data'!A38","v":0},"[Vnom]"]
[0.5,{"$f":"'Max Cont Power'!$L$2*'Efficiency Data'!A39","v":0},"[Vnom]"]
[0.75,{"$f":"'Max Cont Power'!$L$2*'Efficiency Data'!A40","v":0},"[Vnom]"]
[1,{"$f":"'Max Cont Power'!$L$2*'Efficiency Data'!A41","v":0},"[Vnom]"]
[null,{"$f":"'Max Cont Power'!$L$2*'Efficiency Data'!A42","v":0}]
[0.1,{"$f":"'Max Cont Power'!$L$2*'Efficiency Data'!A43","v":0},{"$f":"$C$19","v":"[Vmax]"}]
[0.2,{"$f":"'Max Cont Power'!$L$2*'Efficiency Data'!A44","v":0},"[Vmax]"]
[0.3,{"$f":"'Max Cont Power'!$L$2*'Efficiency Data'!A45","v":0},"[Vmax]"]
[0.5,{"$f":"'Max Cont Power'!$L$2*'Efficiency Data'!A46","v":0},"[Vmax]"]
[0.75,{"$f":"'Max Cont Power'!$L$2*'Efficiency Data'!A47","v":0},"[Vmax]"]
[1,{"$f":"'Max Cont Power'!$L$2*'Efficiency Data'!A48","v":0},"[Vmax]"]

{"sheet":"Summary","index":3,"n_rows":26,"n_cols":11,"rows_kept":26,"cut":false,"hidden":true,"merged":[]}
["Enter All Data on the Maximum Cont Power and Efficiency Data Worksheets First"]
[]
["Manufacturer Name:",{"$f":"IF('Max Cont Power'!B2=\"\",\"\",'Max Cont Power'!B2)","v":""}]
["Model Number:",{"$f":"IF('Max Cont Power'!B3=\"\",\"\",'Max Cont Power'!B3)","v":""}]
["Output Voltage (Vac)",{"$f":"IF('Max Cont Power'!B4=\"\",\"\",'Max Cont Power'!B4)","v":""}]
[]
["Maximum Continuous Output Power:",null,null,null,{"$f":"'Max Cont Power'!L2 / 1000","v":0},"kW",null,"Night Tare Loss:",null,null,"W"]
[]
[null,"Vmin: ",{"$f":"IF('Efficiency Data'!C5=\"\",\"\",'Efficiency Data'!C5)","v":"[Vmin]"},"Vdc","Vnom: ",{"$f":"IF('Efficiency Data'!C12=\"\",\"\",'Efficiency Data'!C12)","v":"[Vnom]"},"Vdc","Vmax:",{"$f":"IF('Efficiency Data'!C19=\"\",\"\",'Efficiency Data'!C19)","v":"[Vmax]"},"Vdc"]
[]
[null,null,null,"Power Level (%; kW)"]
[null,null,null,0.1,0.2,0.3,0.5,0.75,1]
[null,"Input Voltage (Vdc)",null,{"$f":"'Max Cont Power'!$L$2/1000*Summary!D12","v":0},{"$f":"'Max Cont Power'!$L$2/1000*Summary!E12","v":0},{"$f":"'Max Cont Power'!$L$2/1000*Summary!F12","v":0},{"$f":"'Max Cont Power'!$L$2/1000*Summary!G12","v":0},{"$f":"'Max Cont Power'!$L$2/1000*Summary!H12","v":0},{"$f":"'Max Cont Power'!$L$2/1000*Summary!I12","v":0},"Wtd"]
[null,"Vmin",{"$f":"IF(ISNUMBER(C9),C9,\"\")","v":""},{"$f":"IF(ISNUMBER('Efficiency Data'!G5),AVERAGE('Efficiency Data'!G5,'Efficiency Data'!K5,'Efficiency Data'!O5,'Efficiency Data'!S5,'Efficiency Data'!W5,'Efficiency Data'!G29,'Efficiency Data'!K29,'Efficiency Data'!O29,'Efficiency Data'!S29,'Efficiency Data'!W29),\"\")","v":""},{"$f":"IF(ISNUMBER('Efficiency Data'!G6),AVERAGE('Efficiency Data'!G6,'Efficiency Data'!K6,'Efficiency Data'!O6,'Efficiency Data'!S6,'Efficiency Data'!W6,'Efficiency Data'!G30,'Efficiency Data'!K30,'Efficiency Data'!O30,'Efficiency Data'!S30,'Efficiency Data'!W30),\"\")","v":""},{"$f":"IF(ISNUMBER('Efficiency Data'!G7),AVERAGE('Efficiency Data'!G7,'Efficiency Data'!K7,'Efficiency Data'!O7,'Efficiency Data'!S7,'Efficiency Data'!W7,'Efficiency Data'!G31,'Efficiency Data'!K31,'Efficiency Data'!O31,'Efficiency Data'!S31,'Efficiency Data'!W31),\"\")","v":""},{"$f":"IF(ISNUMBER('Efficiency Data'!G8),AVERAGE('Efficiency Data'!G8,'Efficiency Data'!K8,'Efficiency Data'!O8,'Efficiency Data'!S8,'Efficiency Data'!W8,'Efficiency Data'!G32,'Efficiency Data'!K32,'Efficiency Data'!O32,'Efficiency Data'!S32,'Efficiency Data'!W32),\"\")","v":""},{"$f":"IF(ISNUMBER('Efficiency Data'!G9),AVERAGE('Efficiency Data'!G9,'Efficiency Data'!K9,'Efficiency Data'!O9,'Efficiency Data'!S9,'Efficiency Data'!W9,'Efficiency Data'!G33,'Efficiency Data'!K33,'Efficiency Data'!O33,'Efficiency Data'!S33,'Efficiency Data'!W33),\"\")","v":""},{"$f":"IF(ISNUMBER('Efficiency Data'!G10),AVERAGE('Efficiency Data'!G10,'Efficiency Data'!K10,'Efficiency Data'!O10,'Efficiency Data'!S10,'Efficiency Data'!W10,'Efficiency Data'!G34,'Efficiency Data'!K34,'Efficiency Data'!O34,'Efficiency Data'!S34,'Efficiency Data'!W34),\"\")","v":""},{"$f":"IF(ISERROR(D14*0.04+E14*0.05+F14*0.12+G14*0.21+H14*0.53+I14*0.05),0,D14*0.04+E14*0.05+F14*0.12+G14*0.21+H14*0.53+I14*0.05)","v":0}]
[null,"Vnom",{"$f":"IF(ISNUMBER(F9),F9,\"\")","v":""},{"$f":"IF(ISNUMBER('Efficiency Data'!G12),AVERAGE('Efficiency Data'!G12,'Efficiency Data'!K12,'Efficiency Data'!O12,'Efficiency Data'!S12,'Efficiency Data'!W12,'Efficiency Data'!G36,'Efficiency Data'!K36,'Efficiency Data'!O36,'Efficiency Data'!S36,'Efficiency Data'!W36),\"\")","v":""},{"$f":"IF(ISNUMBER('Efficiency Data'!G13),AVERAGE('Efficiency Data'!G13,'Efficiency Data'!K13,'Efficiency Data'!O13,'Efficiency Data'!S13,'Efficiency Data'!W13,'Efficiency Data'!G37,'Efficiency Data'!K37,'Efficiency Data'!O37,'Efficiency Data'!S37,'Efficiency Data'!W37),\"\")","v":""},{"$f":"IF(ISNUMBER('Efficiency Data'!G14),AVERAGE('Efficiency Data'!G14,'Efficiency Data'!K14,'Efficiency Data'!O14,'Efficiency Data'!S14,'Efficiency Data'!W14,'Efficiency Data'!G38,'Efficiency Data'!K38,'Efficiency Data'!O38,'Efficiency Data'!S38,'Efficiency Data'!W38),\"\")","v":""},{"$f":"IF(ISNUMBER('Efficiency Data'!G15),AVERAGE('Efficiency Data'!G15,'Efficiency Data'!K15,'Efficiency Data'!O15,'Efficiency Data'!S15,'Efficiency Data'!W15,'Efficiency Data'!G39,'Efficiency Data'!K39,'Efficiency Data'!O39,'Efficiency Data'!S39,'Efficiency Data'!W39),\"\")","v":""},{"$f":"IF(ISNUMBER('Efficiency Data'!G16),AVERAGE('Efficiency Data'!G16,'Efficiency Data'!K16,'Efficiency Data'!O16,'Efficiency Data'!S16,'Efficiency Data'!W16,'Efficiency Data'!G40,'Efficiency Data'!K40,'Efficiency Data'!O40,'Efficiency Data'!S40,'Efficiency Data'!W40),\"\")","v":""},{"$f":"IF(ISNUMBER('Efficiency Data'!G17),AVERAGE('Efficiency Data'!G17,'Efficiency Data'!K17,'Efficiency Data'!O17,'Efficiency Data'!S17,'Efficiency Data'!W17,'Efficiency Data'!G41,'Efficiency Data'!K41,'Efficiency Data'!O41,'Efficiency Data'!S41,'Efficiency Data'!W41),\"\")","v":""},{"$f":"IF(ISERROR(D15*0.04+E15*0.05+F15*0.12+G15*0.21+H15*0.53+I15*0.05),0,D15*0.04+E15*0.05+F15*0.12+G15*0.21+H15*0.53+I15*0.05)","v":0}]
[null,"Vmax",{"$f":"IF(ISNUMBER(I9),I9,\"\")","v":""},{"$f":"IF(ISNUMBER('Efficiency Data'!G19),AVERAGE('Efficiency Data'!G19,'Efficiency Data'!K19,'Efficiency Data'!O19,'Efficiency Data'!S19,'Efficiency Data'!W19,'Efficiency Data'!G43,'Efficiency Data'!K43,'Efficiency Data'!O43,'Efficiency Data'!S43,'Efficiency Data'!W43),\"\")","v":""},{"$f":"IF(ISNUMBER('Efficiency Data'!G20),AVERAGE('Efficiency Data'!G20,'Efficiency Data'!K20,'Efficiency Data'!O20,'Efficiency Data'!S20,'Efficiency Data'!W20,'Efficiency Data'!G44,'Efficiency Data'!K44,'Efficiency Data'!O44,'Efficiency Data'!S44,'Efficiency Data'!W44),\"\")","v":""},{"$f":"IF(ISNUMBER('Efficiency Data'!G21),AVERAGE('Efficiency Data'!G21,'Efficiency Data'!K21,'Efficiency Data'!O21,'Efficiency Data'!S21,'Efficiency Data'!W21,'Efficiency Data'!G45,'Efficiency Data'!K45,'Efficiency Data'!O45,'Efficiency Data'!S45,'Efficiency Data'!W45),\"\")","v":""},{"$f":"IF(ISNUMBER('Efficiency Data'!G22),AVERAGE('Efficiency Data'!G22,'Efficiency Data'!K22,'Efficiency Data'!O22,'Efficiency Data'!S22,'Efficiency Data'!W22,'Efficiency Data'!G46,'Efficiency Data'!K46,'Efficiency Data'!O46,'Efficiency Data'!S46,'Efficiency Data'!W46),\"\")","v":""},{"$f":"IF(ISNUMBER('Efficiency Data'!G23),AVERAGE('Efficiency Data'!G23,'Efficiency Data'!K23,'Efficiency Data'!O23,'Efficiency Data'!S23,'Efficiency Data'!W23,'Efficiency Data'!G47,'Efficiency Data'!K47,'Efficiency Data'!O47,'Efficiency Data'!S47,'Efficiency Data'!W47),\"\")","v":""},{"$f":"IF(ISNUMBER('Efficiency Data'!G24),AVERAGE('Efficiency Data'!G24,'Efficiency Data'!K24,'Efficiency Data'!O24,'Efficiency Data'!S24,'Efficiency Data'!W24,'Efficiency Data'!G48,'Efficiency Data'!K48,'Efficiency Data'!O48,'Efficiency Data'!S48,'Efficiency Data'!W48),\"\")","v":""},{"$f":"IF(ISERROR(D16*0.04+E16*0.05+F16*0.12+G16*0.21+H16*0.53+I16*0.05),0,D16*0.04+E16*0.05+F16*0.12+G16*0.21+H16*0.53+I16*0.05)","v":0}]
[]
[null,null,"CEC Efficiency =",null,null,null,{"$f":"AVERAGE(J14,J15,J16)/100","v":0}]
[]
[]
[]
[null,null,null,""]
[]
[null,null,{"$f":"C14&\" Vdc\"","v":" Vdc"}]
[null,null,{"$f":"C15&\" Vdc\"","v":" Vdc"}]
[null,null,{"$f":"C16&\" Vdc\"","v":" Vdc"}]

{"sheet":"List data","index":4,"n_rows":15,"n_cols":47,"rows_kept":15,"cut":false,"hidden":true,"merged":[[2,4,3,4],[2,45,3,45],[2,46,3,46],[2,41,3,41],[2,42,3,42],[2,43,3,43],[2,35,3,35],[2,36,3,36],[2,37,3,37],[2,38,3,38],[2,39,3,39],[2,40,3,40],[2,21,3,21],[2,34,3,34],[2,23,3,23],[2,24,3,24],[2,30,3,30],[2,31,3,31],[2,32,3,32],[2,33,3,33],[2,16,3,16],[2,17,3,17],[2,18,3,18],[2,19,3,19],[2,20,3,20],[2,25,3,25],[2,26,3,26],[2,27,3,27],[2,28,3,28],[2,29,3,29],[2,0,3,0],[2,8,3,8],[2,6,2,7],[2,44,3,44],[2,10,3,10],[2,1,3,1],[2,2,3,2],[2,3,3,3],[2,5,3,5],[2,9,3,9],[2,22,3,22],[2,11,3,11],[2,12,3,12],[2,13,3,13],[2,14,3,14],[2,15,3,15]]}
[]
[]
["Manufacturer Name","Model Number","Description","Power Rating, Continuous at unity power factor\n(kW)","Nominal Voltage\n(Vac)","Weighted Efficiency (%)","UL 1741 SA Certification",null,"Notes","Night\nTare Loss (W)","Pwr Rat Cont 40\n(kW)","Night\nTare 40 (W)","Vlt \nMin\n(V)","Vlt \nNom      (V)","Vlt \nMax       (V)","Pwr Lvl\n10 (W)","Pwr Lvl\n20 (W)","Pwr Lvl\n30 (W)","Pwr Lvl\n50 (W)","Pwr Lvl\n75 (W)","Pwr Lvl\n100 (W)","Eff Vmin\n P10","Eff Vmin\nP20","Eff Vmin\nP30","Eff Vmin\nP50","Eff Vmin\nP75","Eff Vmin\nP100","Eff Vmin\nWtd","Eff Vnom\nP10","Eff Vnom\nP20","Eff Vnom\nP30","Eff Vnom\nP50","Eff Vnom\nP75","Eff Vnom\nP100","Eff Vnom\nWtd","Eff Vmax\nP10","Eff Vmax\nP20","Eff Vmax\nP30","Eff Vmax\nP50","Eff Vmax\nP75","Eff Vmax\nP100","Eff Vmax\nWtd","Built-In Meter","Microinverter","Sort Order","CEC Listing Date","Last Update"]
[null,null,null,null,null,null,"Certificate Date","Firmware Version"]
[{"$f":"Summary!B3","v":""},{"$f":"Summary!B4","v":""},null,{"$f":"Summary!E7","v":0},null,{"$f":"Summary!G18","v":0},null,null,null,{"$f":"ABS(Summary!J7)","v":0},null,null,{"$f":"Summary!C9","v":"[Vmin]"},{"$f":"Summary!F9","v":"[Vnom]"},{"$f":"Summary!I9","v":"[Vmax]"},{"$f":"Summary!D13","v":0},{"$f":"Summary!E13","v":0},{"$f":"Summary!F13","v":0},{"$f":"Summary!G13","v":0},{"$f":"Summary!H13","v":0},{"$f":"Summary!I13","v":0},{"$f":"Summary!D14","v":""},{"$f":"Summary!E14","v":""},{"$f":"Summary!F14","v":""},{"$f":"Summary!G14","v":""},{"$f":"Summary!H14","v":""},{"$f":"Summary!I14","v":""},{"$f":"Summary!J14","v":0},{"$f":"Summary!D15","v":""},{"$f":"Summary!E15","v":""},{"$f":"Summary!F15","v":""},{"$f":"Summary!G15","v":""},{"$f":"Summary!H15","v":""},{"$f":"Summary!I15","v":""},{"$f":"Summary!J15","v":0},{"$f":"Summary!D16","v":""},{"$f":"Summary!E16","v":""},{"$f":"Summary!F16","v":""},{"$f":"Summary!G16","v":""},{"$f":"Summary!H16","v":""},{"$f":"Summary!I16","v":""},{"$f":"Summary!J16","v":0}]
[]
[]
[]
[]
[]
[]
[]
[]
[]
[null,null,null,null,null,null,null,{"$f":"Dropdown!A1:A4","v":{"$error":"#VALUE!"}}]

{"sheet":"Dropdown","index":5,"n_rows":4,"n_cols":1,"rows_kept":4,"cut":false,"hidden":true,"merged":[]}
["Select Interval"]
["5 Minute"]
["1 Minute"]
["Other"]